bitfinex/quotes_SOLUSD_20260201
["timestamp","ask_amount","ask_price","bid_price","bid_amount"]
[1769936821970,0.80702845,105.7,105.66,13.69806575]
[1769936822882,0.80702845,105.69,105.66,4.23406251]
[1769936823078,0.80702845,105.69,105.66,13.69818931]
[1769936823581,0.80702845,105.69,105.66,13.69814567]
[1769936824788,0.80702845,105.69,105.67,3.44342072]
[1769936824994,0.80702845,105.69,105.66,13.69814567]
[1769936825888,0.80702845,105.69,105.67,3.44342072]
[1769936827978,0.80702845,105.69,105.66,13.69814567]
[1769936830075,0.84674449,105.72,105.69,0.86199562]
[1769936830286,0.84674449,105.72,105.69,4.30541634]
[1769936830697,0.84674449,105.72,105.7,3.44342072]
[1769936830898,10.30427284,105.74,105.71,4.30541634]
[1769936831099,0.84674449,105.74,105.71,4.30541634]
[1769936831402,0.84674449,105.75,105.73,3.44342072]
[1769936832177,23.63329777,105.79,105.74,3.44342072]
[1769936832506,0.94674449,105.8,105.76,4.30541634]
[1769936833202,0.84674449,105.78,105.74,4.30541634]
[1769936833596,0.84674449,105.77,105.74,4.30541634]
[1769936833796,0.84674449,105.77,105.74,3.44342072]
[1769936834583,0.84674449,105.76,105.73,3.44342072]
[1769936834783,0.84674449,105.76,105.73,4.30541634]
[1769936835603,10.3015936,105.77,105.73,13.76337227]
[1769936838802,0.84674449,105.76,105.73,4.30541634]
[1769936839103,0.84674449,105.76,105.72,4.30541634]
[1769936839285,0.84674449,105.75,105.71,4.30541634]
[1769936840604,0.84674449,105.75,105.71,12.90308669]
[1769936840794,10.30303612,105.75,105.72,0.86199562]
[1769936841403,0.84674449,105.74,105.71,13.76508231]
[1769936842585,0.84674449,105.75,105.72,0.86199562]
[1769936842790,0.84674449,105.75,105.72,4.30541634]
[1769936846008,10.30254468,105.76,105.72,13.76416019]
[1769936846204,0.84674449,105.75,105.71,13.76520605]
[1769936846404,13.74508358,105.77,105.73,0.86199562]
[1769936846604,12.89833909,105.77,105.73,3.44342072]
[1769936846907,0.84674449,105.76,105.73,0.86199562]
[1769936848311,0.84674449,105.73,105.69,13.76663743]
[1769936848506,40.81296159,105.76,105.71,13.76517161]
[1769936848893,40.81296159,105.76,105.71,4.30541634]
[1769936849406,40.81296159,105.76,105.72,0.86199562]
[1769936850615,10.12998286,105.75,105.72,0.86199562]
[1769936850801,10.12998286,105.75,105.71,4.30541634]
[1769936851002,13.57340358,105.75,105.71,4.30541634]
[1769936851605,0.67242532,105.74,105.71,0.86199562]
[1769936853004,10.12993573,105.74,105.71,0.86199562]
[1769936857719,0.66927622,105.73,105.7,3.44342072]
[1769936858018,0.66927622,105.73,105.7,4.29232605]
[1769936858221,0.66890783,105.72,105.68,4.29232605]
[1769936858404,0.66890783,105.72,105.67,9.4627011]
[1769936858405,0.66890783,105.7,105.67,0.84890533]
[1769936858818,0.66890783,105.7,105.66,13.75627166]
[1769936859003,4.11232855,105.7,105.66,0.84890533]
[1769936859401,13.57364647,105.7,105.66,0.84890533]
[1769936860293,0.66818368,105.69,105.65,0.84890533]
[1769936860499,4.1116044,105.68,105.65,0.84890533]
[1769936860819,4.01672782,105.68,105.65,0.84890533]
[1769936861315,3.44342072,105.67,105.63,0.84890533]
[1769936861618,12.90731093,105.67,105.63,0.84890533]
[1769936862721,13.47991043,105.67,105.63,0.84890533]
[1769936863214,4.0156725,105.66,105.63,0.84890533]
[1769936863614,4.0204571,105.66,105.63,0.84890533]
[1769936864297,0.57156828,105.65,105.62,0.82239236]
[1769936864613,4.0197736,105.65,105.61,10.49086777]
[1769936865002,0.57156828,105.66,105.63,0.82239236]
[1769936865202,13.48417613,105.66,105.63,0.82239236]
[1769936866826,4.01932543,105.65,105.62,0.82239236]
[1769936867530,0.57112011,105.65,105.62,0.82239236]
[1769936867736,4.01932543,105.65,105.61,13.93896681]
[1769936867911,4.01921442,105.64,105.61,0.2]
[1769936868228,4.01921442,105.64,105.61,1.02239236]
[1769936868798,3.44820532,105.65,105.61,1.02239236]
[1769936869002,9.46611132,105.64,105.61,1.02239236]
[1769936870818,12.91431664,105.64,105.61,1.02239236]
[1769936871533,9.46553588,105.65,105.63,0.82239236]
[1769936871726,9.46553588,105.65,105.62,0.82239236]
[1769936871922,0.57057768,105.64,105.61,0.2]
[1769936872103,4.018783,105.64,105.61,1.02239236]
[1769936873011,37.14725243,105.65,105.61,1.02239236]
[1769936874629,37.14725243,105.65,105.61,4.47059768]
[1769936875130,13.4850122,105.64,105.61,1.02239236]
[1769936875514,10.03680688,105.64,105.61,1.02239236]
[1769936875715,10.03680688,105.64,105.61,4.47059768]
[1769936878407,10.03680688,105.64,105.61,1.02239236]
[1769936879422,13.4850122,105.64,105.61,1.02239236]
[1769936879628,0.5697724,105.63,105.61,0.2]
[1769936879813,0.5697724,105.62,105.61,0.2]
[1769936880018,4.01797772,105.63,105.61,0.2]
[1769936880430,0.56967687,105.62,105.61,0.2]
[1769936881215,13.48578599,105.62,105.59,0.82239236]
[1769936881416,4.01778776,105.61,105.58,0.92239236]
[1769936882144,0.56958244,105.6,105.58,0.1]
[1769936884341,13.4871803,105.61,105.58,0.92239236]
[1769936886240,10.03897498,105.61,105.58,4.37059768]
[1769936887343,10.03897498,105.61,105.58,0.92239236]
[1769936890525,10.03706176,105.62,105.59,0.83361463]
[1769936891041,0.56869578,105.61,105.58,0.93361463]
[1769936892139,4.0169011,105.61,105.58,0.93361463]
[1769936892754,13.48631417,105.61,105.58,0.93361463]
[1769936894046,0.56844915,105.59,105.58,0.1]
[1769936894245,0.56844915,105.59,105.57,0.2]
[1769936894637,4.01665447,105.59,105.57,0.2]
[1769936894966,4.01657415,105.58,105.56,0.2]
[1769936895251,9.4713663,105.59,105.54,3.44820532]
[1769936895252,0.36828942,105.59,105.54,3.44820532]
[1769936895452,0.36828942,105.59,105.56,4.28181995]
[1769936895928,0.36828942,105.59,105.56,0.83361463]
[1769936896129,3.81649474,105.59,105.55,4.28181995]
[1769936896333,0.36821093,105.57,105.54,0.83361463]
[1769936896554,3.44820532,105.56,105.53,0.83361463]
[1769936897352,17.5646594,105.57,105.53,0.83361463]
[1769936900453,0.36816273,105.56,105.53,0.83361463]
[1769936900837,3.81636805,105.55,105.52,1.03361463]
[1769936901564,0.36816273,105.55,105.52,1.03361463]
[1769936901773,9.8423875,105.55,105.52,1.03361463]
[1769936902762,9.8413547,105.57,105.53,0.83361463]
[1769936902948,9.84034672,105.58,105.55,0.83361463]
[1769936903348,3.81690135,105.57,105.53,0.83361463]
[1769936904570,13.28985414,105.57,105.53,0.83361463]
[1769936906273,9.84164882,105.57,105.53,4.28181995]
[1769936906473,9.84115923,105.58,105.55,0.83361463]
[1769936906977,4.27527085,105.59,105.57,0.83361463]
[1769936907166,3.81741648,105.62,105.58,4.28181995]
[1769936907560,0.36937894,105.6,105.57,4.28181995]
[1769936908069,3.81758426,105.61,105.57,4.28181995]
[1769936908272,9.46820041,105.62,105.59,0.83361463]
[1769936908454,9.46820041,105.62,105.59,4.28181995]
[1769936908654,9.46820041,105.62,105.6,0.83361463]
[1769936908853,4.94027941,105.64,105.61,0.83361463]
[1769936909054,14.7766004,105.64,105.61,0.83361463]
[1769936909364,0.36970875,105.63,105.59,0.83361463]
[1769936909564,0.36970875,105.62,105.59,0.83361463]
[1769936909759,3.81791407,105.63,105.59,4.28181995]
[1769936910769,3.81791407,105.63,105.59,0.83361463]
[1769936911283,9.4679038,105.62,105.59,0.83361463]
[1769936915570,9.4679038,105.62,105.59,4.28181995]
[1769936915985,8.09412982,105.65,105.61,0.83361463]
[1769936916178,8.09412982,105.65,105.61,4.28181995]
[1769936916390,0.37080487,105.64,105.61,4.28181995]
[1769936916895,9.83732669,105.64,105.61,4.28181995]
[1769936918493,9.83732669,105.64,105.61,0.83361463]
[1769936918670,13.28597531,105.64,105.6,4.23570977]
[1769936918979,9.83776999,105.64,105.6,4.23570977]
[1769936919483,0.37139255,105.63,105.6,4.23570977]
[1769936920086,9.83874737,105.63,105.6,4.23570977]
[1769936920382,9.46735482,105.63,105.6,0.78750445]
[1769936921186,9.46735482,105.63,105.6,4.23570977]
[1769936922079,9.46735482,105.63,105.6,3.44820532]
[1769936922280,9.46735482,105.63,105.61,0.78750445]
[1769936924088,0.37208998,105.62,105.59,0.81367018]
[1769936925189,3.82125428,105.62,105.59,0.81367018]
[1769936925868,9.4688003,105.61,105.59,0.81367018]
[1769936927594,9.84017487,105.62,105.59,0.81367018]
[1769936930006,51.60249414,105.65,105.62,0.81367018]
[1769936930007,33.12971981,105.65,105.62,0.81367018]
[1769936930175,33.12971981,105.65,105.62,0.38807381]
[1769936930583,33.9182524,105.65,105.62,0.38807381]
[1769936931185,10.2542532,105.65,105.62,3.70679681]
[1769936932281,9.46471171,105.66,105.62,12.91691821]
[1769936932801,10.2532443,105.66,105.62,12.91691821]
[1769936933300,10.2532443,105.66,105.63,0.81367018]
[1769936934296,9.46471171,105.66,105.63,0.81367018]
[1769936935188,13.7024086,105.66,105.62,0.81367018]
[1769936935389,13.7024086,105.66,105.63,0.81367018]
[1769936937698,9.46471171,105.66,105.63,0.81367018]
[1769936937900,13.73916542,105.67,105.64,0.81367018]
[1769936938194,17.97686231,105.67,105.64,0.81367018]
[1769936940200,14.52769801,105.67,105.64,0.81367018]
[1769936940400,10.25242716,105.67,105.64,0.81367018]
[1769936940788,10.25242716,105.67,105.64,4.26283448]
[1769936940991,0.78853259,105.66,105.63,0.81367018]
[1769936941188,4.23769689,105.66,105.63,0.81367018]
[1769936942500,9.46521533,105.65,105.63,0.81367018]
[1769936945705,0.78853259,105.64,105.61,0.81367018]
[1769936945915,0.78853259,105.62,105.59,0.81367018]
[1769936946289,10.25680056,105.62,105.59,0.81367018]
[1769936946698,13.70596486,105.62,105.59,0.81367018]
[1769936953516,9.46729095,105.63,105.6,4.28292242]
[1769936954101,9.46729095,105.63,105.6,0.83375812]
[1769936955029,13.73011082,105.64,105.61,0.83375812]
[1769936955325,10.28094652,105.64,105.61,0.83375812]
[1769936955697,13.74091615,105.65,105.61,0.83375812]
[1769936955902,13.74091615,105.65,105.62,0.83375812]
[1769936956126,9.4656453,105.65,105.62,0.83375812]
[1769936956526,10.27999813,105.65,105.62,0.83375812]
[1769936963414,13.72916243,105.65,105.62,0.83375812]
[1769936964838,10.27999813,105.65,105.62,0.83375812]
[1769936965024,13.72916243,105.65,105.62,0.83375812]
[1769936965720,10.27999813,105.65,105.62,0.83375812]
[1769936970149,13.72916243,105.65,105.62,0.83375812]
[1769936971251,0.81435283,105.64,105.62,0.83375812]
[1769936971625,13.72916243,105.65,105.62,0.83375812]
[1769936980457,10.27999813,105.65,105.62,0.83375812]
[1769937001174,9.4656453,105.65,105.62,0.83375812]
[1769937001345,10.27769063,105.65,105.62,0.83375812]
[1769937001753,9.4656453,105.65,105.62,0.83375812]
[1769937002843,10.27769063,105.65,105.62,0.83375812]
[1769937007162,0.81204533,105.64,105.6,0.83538416]
[1769937007367,0.88081321,105.61,105.58,0.83538416]
[1769937007871,5.15608406,105.64,105.6,0.83538416]
[1769937008162,0.88081321,105.63,105.6,0.39611507]
[1769937009772,10.3479228,105.63,105.6,0.39611507]
[1769937010472,9.46710959,105.63,105.6,0.39611507]
[1769937010672,10.3479228,105.63,105.6,0.39611507]
[1769937011671,0.88081321,105.62,105.6,0.39611507]
[1769937012263,3.44828622,105.62,105.59,0.83538416]
[1769937012464,4.32909943,105.62,105.59,0.83538416]
[1769937013777,13.79745066,105.62,105.59,0.83538416]
[1769937014181,4.32909943,105.61,105.59,0.83538416]
[1769937015880,13.79843092,105.61,105.59,0.83538416]
[1769937021089,0.88081321,105.6,105.57,0.83538416]
[1769937021381,4.32909943,105.6,105.57,0.83538416]
[1769937022390,10.35074185,105.6,105.57,0.83538416]
[1769937023283,9.46913444,105.61,105.58,0.83538416]
[1769937023586,9.46913444,105.61,105.59,0.83538416]
[1769937024173,10.34994765,105.61,105.59,0.83538416]
[1769937025684,10.34994765,105.61,105.58,0.83538416]
[1769937026369,27.11987922,105.62,105.59,0.83538416]
[1769937026370,10.34906904,105.62,105.59,0.83538416]
[1769937027290,13.7964803,105.63,105.6,0.83538416]
[1769937027605,9.46738087,105.63,105.6,0.83538416]
[1769937027790,10.34819408,105.63,105.6,0.83538416]
[1769937027992,9.46521533,105.65,105.63,0.83538416]
[1769937028286,10.34456461,105.67,105.64,0.83538416]
[1769937028489,9.46252838,105.68,105.66,0.83538416]
[1769937028682,14.40758667,105.68,105.66,0.83538416]
[1769937028869,9.46252838,105.68,105.66,0.83538416]
[1769937029070,10.34334159,105.68,105.66,0.83538416]
[1769937030196,10.34334159,105.68,105.65,3.44828622]
[1769937030376,10.34334159,105.68,105.65,4.28367038]
[1769937030888,0.88081321,105.7,105.67,0.83538416]
[1769937031090,0.88081321,105.7,105.67,4.28367038]
[1769937031888,9.46073793,105.7,105.68,0.83538416]
[1769937032090,9.46073793,105.7,105.67,3.44828622]
[1769937032411,4.32909943,105.73,105.69,3.44828622]
[1769937032685,0.88081321,105.73,105.69,3.44828622]
[1769937032890,10.33909062,105.73,105.69,3.44828622]
[1769937033987,10.33909062,105.73,105.7,0.83538416]
[1769937038193,0.83798699,105.72,105.69,0.81591642]
[1769937038393,4.28627321,105.72,105.69,0.81591642]
[1769937038690,0.83798699,105.7,105.67,4.26420264]
[1769937039103,0.83798699,105.7,105.68,0.81591642]
[1769937040512,10.29782995,105.71,105.68,0.81591642]
[1769937041809,0.83798699,105.69,105.66,4.26420264]
[1769937042107,0.83798699,105.69,105.66,0.81591642]
[1769937042912,10.30002639,105.69,105.66,0.81591642]
[1769937045987,10.30002639,105.69,105.66,4.2613589]
[1769937046506,10.30002639,105.69,105.66,0.81591642]
[1769937050213,10.30002639,105.69,105.66,4.2613589]
[1769937051105,10.30002639,105.69,105.66,0.81591642]
[1769937051808,13.78510418,105.7,105.67,0.81781571]
[1769937052006,10.3396617,105.7,105.67,0.81781571]
[1769937052510,0.87886409,105.69,105.67,0.81781571]
[1769937052808,0.87886409,105.69,105.66,4.26325819]
[1769937052999,0.87886409,105.69,105.64,10.28366714]
[1769937053000,0.87886409,105.68,105.64,10.28366714]
[1769937053202,0.87886409,105.68,105.64,13.72910962]
[1769937053407,0.87886409,105.68,105.64,12.91129391]
[1769937053610,0.87886409,105.68,105.65,0.81781571]
[1769937054610,0.87886409,105.68,105.65,4.26325819]
[1769937055992,10.34132636,105.69,105.66,0.81781571]
[1769937056193,0.87886409,105.69,105.67,0.81781571]
[1769937059413,10.33969755,105.7,105.67,10.28123523]
[1769937059609,10.33969755,105.7,105.67,0.81781571]
[1769937063609,13.78514003,105.7,105.67,0.81781571]
[1769937066223,0.87886409,105.69,105.67,0.81781571]
[1769937067206,0.87886409,105.68,105.65,0.81781571]
[1769937068198,10.3415857,105.68,105.65,0.81781571]
[1769937070710,0.89780389,105.67,105.64,0.89846049]
[1769937070905,0.89780389,105.67,105.63,13.81071077]
[1769937071111,0.89780389,105.67,105.64,0.89846049]
[1769937072421,0.89780389,105.67,105.64,4.34390297]
[1769937072618,0.89780389,105.67,105.64,0.89846049]
[1769937073213,10.3596804,105.69,105.66,4.34390297]
[1769937073715,10.3596804,105.69,105.66,0.89846049]
[1769937077733,0.89780389,105.69,105.66,10.36242949]
[1769937077932,0.89780389,105.7,105.67,0.89846049]
[1769937078316,0.89780389,105.7,105.67,9.46321176]
[1769937078620,0.89780389,105.7,105.68,0.89846049]
[1769937082838,13.80444885,105.7,105.67,0.89846049]
[1769937083038,0.89780389,105.68,105.64,0.89846049]
[1769937083344,4.34324637,105.67,105.63,0.89846049]
[1769937083642,4.34324637,105.67,105.64,0.89846049]
[1769937084742,13.80708369,105.67,105.64,0.89846049]
[1769937085542,10.36164121,105.67,105.64,0.89846049]
[1769937086447,13.80629093,105.68,105.65,0.89846049]
[1769937086634,10.36084845,105.68,105.65,0.34771553]
[1769937086941,0.89780389,105.67,105.65,0.34771553]
[1769937087635,0.89780389,105.67,105.64,12.91148921]
[1769937088545,0.89780389,105.67,105.64,13.73685184]
[1769937104457,10.36139306,105.67,105.62,24.51548063]
[1769937104658,0.91020906,105.65,105.62,0.84677753]
[1769937105366,0.91020906,105.65,105.61,13.76183134]
[1769937105659,10.3755582,105.65,105.62,0.84786059]
[1769937107363,9.4663783,105.64,105.59,5.36086188]
[1769937107570,0.91020906,105.62,105.59,0.84998952]
[1769937109169,4.35845325,105.62,105.59,0.84998952]
[1769937109358,0.91020906,105.62,105.59,0.84998952]
[1769937110148,10.37818899,105.62,105.59,0.84998952]
[1769937112166,10.37818899,105.62,105.59,4.29823371]
[1769937112475,0.91020906,105.63,105.6,4.30334573]
[1769937114777,0.91020906,105.63,105.6,0.85510154]
[1769937115075,0.91020906,105.63,105.6,4.30334573]
[1769937115865,10.37726265,105.63,105.6,4.30334573]
[1769937120282,0.94024827,105.62,105.58,0.86269073]
[1769937120468,4.38849246,105.61,105.58,0.86269073]
[1769937120671,4.38849246,105.61,105.56,0.2]
[1769937120672,0.95319542,105.59,105.56,0.2]
[1769937121379,0.95319542,105.58,105.56,0.2]
[1769937121580,0.95319542,105.56,105.55,0.2]
[1769937121887,0.95319542,105.56,105.52,13.12461375]
[1769937122179,0.95319542,105.56,105.53,3.44824419]
[1769937122380,0.95319542,105.56,105.52,0.2]
[1769937122381,0.94024827,105.55,105.52,0.2]
[1769937122778,0.94024827,105.55,105.52,3.85091412]
[1769937123479,0.94024827,105.55,105.52,3.64824419]
[1769937123677,10.4153288,105.54,105.52,0.2]
[1769937124179,0.94024827,105.54,105.52,3.64824419]
[1769937124392,0.94024827,105.55,105.52,3.85264335]
[1769937124685,0.94024827,105.54,105.52,3.64824419]
[1769937125871,10.41535258,105.54,105.52,0.2]
[1769937126376,0.94024827,105.54,105.52,0.2]
[1769937127980,0.88218029,105.55,105.52,3.84764703]
[1769937128180,0.88218029,105.56,105.54,3.44824419]
[1769937129201,10.35550924,105.56,105.54,3.44824419]
[1769937129888,0.88218029,105.57,105.55,3.44824419]
[1769937130400,0.88218029,105.57,105.54,3.64402401]
[1769937131294,0.88218029,105.57,105.55,3.44824419]
[1769937131473,10.35428723,105.58,105.55,3.44824419]
[1769937132376,0.88218029,105.57,105.52,33.36832244]
[1769937132577,0.88218029,105.57,105.52,9.86663124]
[1769937132578,0.88218029,105.56,105.52,9.86663124]
[1769937132799,0.88218029,105.56,105.52,13.31487543]
[1769937133000,0.88218029,105.55,105.52,13.31487543]
[1769937134597,0.88218029,105.55,105.52,3.65155771]
[1769937135598,10.35641873,105.55,105.52,3.65155771]
[1769937136406,0.88218029,105.54,105.52,0.01281367]
[1769937136986,0.88218029,105.54,105.52,3.46105786]
[1769937140290,0.88218029,105.52,105.49,9.65637126]
[1769937140609,0.88218029,105.52,105.49,13.10461545]
[1769937141211,0.88218029,105.52,105.5,0.93954755]
[1769937143713,0.88218029,105.52,105.5,4.38779174]
[1769937147095,0.88218029,105.53,105.5,13.86646116]
[1769937147302,0.88218029,105.55,105.52,4.38779174]
[1769937148216,9.47462482,105.55,105.52,4.38779174]
[1769937148413,0.88218029,105.54,105.52,4.38779174]
[1769937148615,0.88218029,105.54,105.52,3.44824419]
[1769937149321,0.88218029,105.54,105.52,4.38779174]
[1769937150003,9.47462482,105.55,105.52,4.38779174]
[1769937150199,0.88218029,105.55,105.53,3.44824419]
[1769937150418,15.30595645,105.57,105.54,4.38779174]
[1769937150610,10.35508913,105.57,105.54,4.38779174]
[1769937151404,0.88218029,105.56,105.54,0.93954755]
[1769937151920,0.88218029,105.56,105.53,3.44824419]
[1769937151921,0.88218029,105.56,105.53,0.93954755]
[1769937155528,100.18408511,105.58,105.53,0.93954755]
[1769937155731,3.44824419,105.57,105.53,0.93954755]
[1769937156414,12.92115303,105.57,105.53,0.93954755]
[1769937157532,0.84814374,105.56,105.53,0.93954755]
[1769937158125,0.84814374,105.55,105.53,3.44824419]
[1769937158307,0.84814374,105.55,105.52,13.77053696]
[1769937158507,0.84814374,105.55,105.52,0.84550197]
[1769937158812,0.84814374,105.53,105.51,20.7]
[1769937159822,0.84814374,105.53,105.5,0.84550197]
[1769937162927,0.84814374,105.53,105.51,0.84550197]
[1769937167029,0.86921654,105.54,105.52,0.86568685]
[1769937167333,10.34382019,105.55,105.52,0.86568685]
[1769937167533,0.86921654,105.54,105.52,0.86568685]
[1769937168135,0.86921654,105.53,105.51,0.86568685]
[1769937175761,10.34526748,105.53,105.5,0.86568685]
[1769937175965,0.86921654,105.52,105.49,0.86568685]
[1769937176149,0.86921654,105.53,105.5,13.79981139]
[1769937176465,10.34478851,105.54,105.51,0.86568685]
[1769937176661,9.47557197,105.54,105.51,0.86568685]
[1769937176852,0.86921654,105.53,105.51,0.86568685]
[1769937178163,0.86921654,105.54,105.51,13.79881966]
[1769937180577,0.86921654,105.54,105.51,10.34335306]
[1769937185572,0.86921654,105.54,105.51,9.47766621]
[1769937185868,10.3438979,105.55,105.52,0.86568685]
[1769937186869,0.86921654,105.54,105.52,0.86568685]
[1769937187370,0.88917942,105.55,105.52,10.3424593]
[1769937187670,0.88917942,105.55,105.52,13.7979259]
[1769937188175,9.47373073,105.56,105.53,4.37035175]
[1769937188176,10.36291015,105.56,105.53,4.37035175]
[1769937189979,0.88917942,105.55,105.52,0.91488515]
[1769937190157,12.92919733,105.56,105.51,0.91488515]
[1769937190158,0.88917942,105.53,105.51,0.91488515]
[1769937190352,0.88917942,105.53,105.5,10.39313418]
[1769937190762,4.34464602,105.52,105.49,20.7]
[1769937190970,4.34464602,105.52,105.49,21.61488515]
[1769937191466,0.88917942,105.52,105.49,21.61488515]
[1769937191674,4.34464602,105.52,105.49,21.61488515]
[1769937193784,10.36606256,105.52,105.49,21.61488515]
[1769937194086,0.88917942,105.51,105.49,21.61488515]
[1769937194280,0.88917942,105.51,105.49,0.91488515]
[1769937196984,0.88917942,105.5,105.48,0.1]
[1769937197286,3.4554666,105.49,105.47,1.11488515]
[1769937199587,4.34464602,105.49,105.47,1.11488515]
[1769937200695,0.88917942,105.48,105.47,0.2]
[1769937200982,0.88917942,105.47,105.45,0.91488515]
[1769937201284,4.34464602,105.47,105.45,0.91488515]
[1769937201599,4.34464602,105.47,105.44,0.91488515]
[1769937202090,13.82607368,105.47,105.44,0.91488515]
[1769937202684,4.34464602,105.46,105.44,0.91488515]
[1769937204009,13.82731165,105.46,105.43,0.91488515]
[1769937204193,4.34464602,105.46,105.43,0.91488515]
[1769937205177,13.82721022,105.46,105.43,0.91488515]
[1769937206794,10.37018208,105.48,105.44,0.91488515]
[1769937207094,3.4554666,105.47,105.44,0.91488515]
[1769937207392,13.82564868,105.48,105.44,0.91488515]
[1769937207575,0.88917942,105.47,105.44,0.91488515]
[1769937207971,4.34464602,105.47,105.44,0.91488515]
[1769937209798,3.4554666,105.46,105.44,0.91488515]
[1769937211892,3.4554666,105.45,105.43,9.48477792]
[1769937212197,0.88917942,105.47,105.44,9.48406676]
[1769937212398,3.4554666,105.45,105.43,9.48447966]
[1769937212598,3.4554666,105.44,105.42,9.5854779]
[1769937212804,3.4554666,105.44,105.42,30.2854779]
[1769937213587,4.34464602,105.45,105.42,30.2854779]
[1769937214081,4.34464602,105.45,105.43,0.91488515]
[1769937215012,3.4554666,105.45,105.43,0.91488515]
[1769937215580,3.4554666,105.45,105.43,10.39961949]
[1769937217400,3.4554666,105.45,105.43,9.48473434]
[1769937217590,3.4554666,105.45,105.43,31.13415424]
[1769937218899,3.4554666,105.45,105.43,10.43415424]
[1769937221905,4.34464602,105.46,105.44,0.9494199]
[1769937222085,3.4554666,105.45,105.44,0.9494199]
[1769937222385,3.4554666,105.45,105.44,0.4967791]
[1769937223709,10.39057564,105.48,105.44,9.48403134]
[1769937223883,3.4554666,105.47,105.44,9.48403134]
[1769937224311,4.36506108,105.48,105.45,0.90220629]
[1769937224809,3.4554666,105.46,105.45,0.90220629]
[1769937225098,3.4554666,105.46,105.44,0.90316121]
[1769937227709,3.46066443,105.46,105.44,0.90316121]
[1769937228288,3.46066443,105.45,105.43,10.39074372]
[1769937228502,3.46066443,105.45,105.42,23.81281366]
[1769937228707,0.90959448,105.46,105.42,23.81281366]
[1769937228906,0.90959448,105.46,105.4,0.2]
[1769937229112,0.90959448,105.46,105.4,4.4]
[1769937229113,3.46066443,105.43,105.4,4.4]
[1769937229411,0.90959448,105.46,105.4,4.4]
[1769937229612,3.46066443,105.43,105.4,4.4]
[1769937230120,0.90959448,105.46,105.4,4.4]
[1769937230288,0.97643296,105.45,105.42,23.71408162]
[1769937230689,3.46066443,105.43,105.42,23.71408162]
[1769937230903,3.46066443,105.43,105.42,27.91408162]
[1769937231119,0.97643296,105.46,105.42,27.91408162]
[1769937231788,3.46066443,105.45,105.42,27.91408162]
[1769937232412,3.46066443,105.45,105.42,37.39994767]
[1769937234511,3.46066443,105.44,105.42,37.39994767]
[1769937235213,3.46066443,105.44,105.42,23.71408162]
[1769937236010,3.46066443,105.43,105.41,9.48676596]
[1769937236216,3.46066443,105.42,105.41,9.48676596]
[1769937236515,3.46066443,105.42,105.4,29.27805635]
[1769937237210,3.46066443,105.42,105.4,23.91719447]
[1769937237417,3.46066443,105.42,105.4,0.2]
[1769937237611,0.97643296,105.43,105.39,50.0611587]
[1769937238314,3.46066443,105.42,105.39,50.0611587]
[1769937238806,3.46066443,105.42,105.4,9.48724235]
[1769937239613,3.46066443,105.41,105.4,9.48724235]
[1769937240313,3.46066443,105.41,105.39,35.82817546]
[1769937240702,3.46066443,105.4,105.39,35.82817546]
[1769937240903,3.46066443,105.4,105.39,40.02817546]
[1769937241103,3.46066443,105.4,105.38,29.18421912]
[1769937241312,3.46066443,105.39,105.37,0.1]
[1769937241505,0.97643296,105.4,105.37,0.1]
[1769937241815,3.46066443,105.39,105.37,0.1]
[1769937242216,3.46066443,105.38,105.37,33.31516377]
[1769937242400,0.97643296,105.4,105.37,33.31516377]
[1769937242599,3.46066443,105.38,105.36,0.1]
[1769937242816,0.97643296,105.4,105.36,0.1]
[1769937243116,3.46066443,105.37,105.34,5.36086188]
[1769937243811,3.46066443,105.37,105.35,9.49216896]
[1769937244310,4.43709739,105.39,105.35,33.22259136]
[1769937245429,0.97643296,105.38,105.35,33.24355088]
[1769937247116,0.97643296,105.38,105.35,33.244651]
[1769937247419,4.43709739,105.39,105.36,0.02422212]
[1769937248598,0.97643296,105.42,105.37,0.02528476]
[1769937248804,4.43709739,105.44,105.39,0.02528476]
[1769937249221,4.43709739,105.44,105.4,0.0263352]
[1769937249410,4.43709739,105.43,105.4,9.51400123]
[1769937249716,4.43709739,105.42,105.39,9.51443769]
[1769937249922,3.46066443,105.4,105.39,9.51443769]
[1769937250716,3.46066443,105.4,105.39,0.0263352]
[1769937252718,3.46066443,105.4,105.38,9.48946669]
[1769937253020,4.45026499,105.41,105.38,9.48946669]
[1769937255730,4.45026499,105.41,105.38,10.28946669]
[1769937259927,3.46066443,105.4,105.38,10.28946669]
[1769937260110,4.45026499,105.4,105.38,10.28946669]
[1769937266825,0.98960056,105.4,105.38,10.28946669]
[1769937271236,0.98960056,105.4,105.38,10.30982656]
[1769937274340,0.98960056,105.4,105.38,9.50982656]
[1769937279241,0.98960056,105.4,105.38,10.30982656]
[1769937282626,14.44104348,105.44,105.39,0.93443256]
[1769937282825,3.46066443,105.43,105.4,0.93443256]
[1769937283638,3.46066443,105.43,105.4,9.48766603]
[1769937284643,3.46066443,105.43,105.4,10.46147284]
[1769937284644,0.92365383,105.42,105.4,10.46147284]
[1769937285747,0.92365383,105.42,105.4,9.48766603]
[1769937286339,4.38431826,105.42,105.4,9.48766603]
[1769937286558,4.38431826,105.41,105.39,10.28851386]
[1769937286751,4.38431826,105.41,105.39,9.48851386]